fUSD/lending_fUSD_20250120
["ID","MTS","AMOUNT","RATE_DAILY","PERIOD"]
[349636757,1737341445354,-500.0,0.00021196,2]
[349636758,1737341445363,-500.0,0.0002147,2]
[349636759,1737341445372,-500.0,0.0002147,2]
[349636760,1737341445382,-70.00887728,0.00021471,2]
[349636761,1737341445391,-941.62112272,0.00021471,2]
[349636762,1737341446019,-456.54887728,0.00021471,2]
[349636763,1737341446030,-2094.58,0.00021471,2]
[349636764,1737341446041,-500.0,0.00021471,2]
[349636765,1737341446051,-504.69,0.00021471,2]
[349636766,1737341446060,-500.0,0.00021471,2]
[349636767,1737341446069,-1099.08,0.00021471,2]
[349636768,1737341446079,-1914.5,0.00021471,2]
[349636770,1737341446088,-500.0,0.00021471,2]
[349636772,1737341446098,-694.52,0.00021471,2]
[349636774,1737341446109,-500.0,0.00021471,2]
[349636776,1737341446118,-1870.05,0.00021471,2]
[349636778,1737341446128,-1035.35,0.00021471,2]
[349636780,1737341446138,-1948.3,0.00021471,2]
[349636782,1737341446148,-1880.06,0.00021471,2]
[349636784,1737341446158,-778.0,0.00021471,2]
[349636786,1737341446167,-529.44,0.00021471,2]
[349636788,1737341446177,-500.0,0.00021471,2]
[349636790,1737341446186,-1294.47,0.00021471,2]
[349636791,1737341446195,-500.0,0.00021471,2]
[349636793,1737341446204,-3986.99,0.00021471,2]
[349636794,1737341446214,-500.0,0.00021471,2]
[349636795,1737341446223,-1171.05,0.00021471,2]
[349636796,1737341446233,-869.79,0.00021471,2]
[349636797,1737341446242,-4870.82,0.00021471,2]
[349636799,1737341446252,-3627.78,0.00021471,2]
[349636801,1737341446262,-500.0,0.00021471,2]
[349636802,1737341446272,-500.0,0.00021471,2]
[349636803,1737341446281,-1690.67,0.00021471,2]
[349636804,1737341446291,-892.06,0.00021471,2]
[349636805,1737341446301,-500.0,0.00021471,2]
[349636806,1737341446310,-500.0,0.00021471,2]
[349636807,1737341446320,-2722.59,0.00021471,2]
[349636808,1737341446330,-1195.86,0.00021471,2]
[349636809,1737341446339,-2123.47,0.00021471,2]
[349636810,1737341446351,-500.0,0.00021471,2]
[349636811,1737341446360,-500.0,0.00021471,2]
[349636812,1737341446370,-1029.67,0.00021471,2]
[349636813,1737341446379,-500.0,0.00021471,2]
[349636814,1737341446388,-1387.9,0.00021471,2]
[349636815,1737341446397,-500.0,0.00021471,2]
[349636816,1737341446407,-790.42,0.00021471,2]
[349636817,1737341446417,-500.0,0.00021471,2]
[349636818,1737341446427,-3392.88,0.00021471,2]
[349636819,1737341446439,-500.0,0.00021471,2]
[349636820,1737341446449,-4539.75,0.00021471,2]
[349636821,1737341446459,-659.67,0.00021471,2]
[349636822,1737341446469,-7232.39,0.00021471,2]
[349636823,1737341446478,-1483.11,0.00021471,2]
[349636824,1737341446487,-942.59,0.00021471,2]
[349636825,1737341446497,-1689.67,0.00021471,2]
[349636826,1737341446506,-1582.85,0.00021471,2]
[349636827,1737341446520,-1366.94,0.00021471,2]
[349636828,1737341446530,-500.0,0.00021471,2]
[349636829,1737341446539,-11936.95,0.00021471,2]
[349636830,1737341446548,-527.37231975,0.00021471,2]
[349636831,1737341446559,-1552.47,0.00021471,2]
[349636832,1737341446569,-500.0,0.00021471,2]
[349636833,1737341446579,-292.47825532,0.00021471,2]
[349636834,1737341446589,-508.49852903,0.00021471,2]
[349636835,1737341446601,-650.09,0.00021471,2]
[349636836,1737341446610,-1131.54,0.00021471,2]
[349636837,1737341446621,-2304.58,0.00021471,2]
[349636838,1737341446630,-2194.46,0.00021471,2]
[349636839,1737341446639,-932.41,0.00021471,2]
[349636840,1737341446649,-500.0,0.00021471,2]
[349636841,1737341446658,-717.65,0.00021471,2]
[349636842,1737341446667,-807.0340656,0.00021471,2]
[349636869,1737341446995,-4068.0,0.00017,5]
[349636870,1737341447005,-18.86656933,0.00021196,2]
[349636873,1737341447017,-490.7871342,0.00021196,2]
[349636875,1737341447028,-1032.1920658,0.00021197,2]
[349636882,1737341447082,-2772.1079342,0.00021197,2]
[349636884,1737341447091,-2040.08,0.00021197,2]
[349636886,1737341447102,-182.466381,0.0002137,2]
[349636888,1737341447112,-865.33503812,0.00021436,2]
[349636890,1737341447122,-1482.6859344,0.00021471,2]
[349636892,1737341447131,-3986.3,0.00021471,2]
[349636893,1737341447140,-2180.9273753,0.00021471,2]
[349636894,1737341447152,-1018.53940112,0.00021471,2]
[349636895,1737341447163,-411.304995,0.00021471,2]
[349636935,1737341447973,-630.53822858,0.00021471,2]
[349636936,1737341447982,-1097.0,0.00021471,2]
[349636937,1737341447993,-10204.92,0.00021471,2]
[349636938,1737341448007,-500.0,0.00021471,2]
[349636939,1737341448016,-5268.84,0.00021471,2]
[349636940,1737341448026,-863.26,0.00021471,2]
[349636941,1737341448036,-1492.23,0.00021471,2]
[349636942,1737341448046,-3853.45,0.00021471,2]
[349636943,1737341448057,-500.0,0.00021471,2]
[349636944,1737341448066,-500.0,0.00021471,2]
[349636945,1737341448076,-2295.54,0.00021471,2]
[349636946,1737341448085,-558.32,0.00021471,2]
[349636947,1737341448095,-500.0,0.00021471,2]
[349636948,1737341448106,-6423.01,0.00021471,2]
[349636949,1737341448115,-673.28,0.00021471,2]
[349636950,1737341448125,-1692.99,0.00021471,2]
[349636951,1737341448134,-1102.46,0.00021471,2]
[349636952,1737341448144,-1866.25,0.00021471,2]
[349636953,1737341448153,-1135.79,0.00021471,2]
[349636954,1737341448163,-500.0,0.00021471,2]
[349636955,1737341448173,-3804.3,0.00021471,2]
[349636956,1737341448182,-2040.08,0.00021471,2]
[349636957,1737341448191,-199761.36619111,0.00021472,2]
[349636958,1737341448203,-310.7999905,0.00021472,2]
[349636959,1737341448218,-3043.37928412,0.00021472,2]
[349636960,1737341448405,-316.86704382,0.00021472,2]
[349636961,1737341448417,-500.0,0.00021472,2]
[349636962,1737341448455,-814.85920756,0.00021472,2]
[349636963,1737341448484,-113585.29992339,0.00021472,2]
[349636964,1737341448494,-155.22934,0.00021486,2]
[349636965,1737341448504,-3000.0,0.0002153,2]
[349636966,1737341448514,-785.19,0.0002154,2]
[349636967,1737341448524,-2840.85,0.00021547,2]
[349636968,1737341448534,-500.0,0.00021547,2]
[349636969,1737341448543,-500.0,0.00021547,2]
[349636970,1737341448552,-652.36,0.00021547,2]
[349636971,1737341448563,-500.0,0.00021547,2]
[349636972,1737341448572,-597.11,0.00021547,2]
[349636973,1737341448582,-500.0,0.00021547,2]
[349636974,1737341448592,-500.0,0.00021547,2]
[349636975,1737341448603,-500.0,0.00021547,2]
[349636976,1737341448613,-602.70785012,0.00021547,2]
[349636977,1737341448622,-1669.1436427,0.0002156,2]
[349636978,1737341448632,-200.0,0.000216,2]
[349636979,1737341448642,-200.0,0.000216,3]
[349636980,1737341448651,-200.0,0.000216,4]
[349636981,1737341448660,-200.0,0.000216,2]
[349636982,1737341448670,-200.0,0.000216,3]
[349636983,1737341448679,-200.0,0.000216,4]
[349636984,1737341448688,-200.0,0.000216,14]
[349636985,1737341448698,-200.0,0.000216,15]
[349636986,1737341448707,-200.0,0.000216,16]
[349636987,1737341448717,-200.0,0.000216,30]
[349636988,1737341448726,-200.0,0.000216,31]
[349636989,1737341448735,-200.0,0.000216,20]
[349636990,1737341448745,-200.0,0.000216,20]
[349636991,1737341448754,-200.0,0.000216,2]
[349636992,1737341448764,-200.0,0.000216,3]
[349636993,1737341448773,-200.0,0.000216,4]
[349636994,1737341448783,-200.0,0.000216,15]
[349636995,1737341448793,-200.0,0.000216,30]
[349636996,1737341448803,-500.0,0.00021644,2]
[349636997,1737341448813,-500.0,0.00021644,2]
[349636998,1737341448822,-1180.97,0.00021644,2]
[349636999,1737341448831,-1356.24,0.00021644,2]
[349637000,1737341448841,-2199.8,0.00021644,2]
[349637001,1737341448851,-1331.89,0.00021644,2]
[349637002,1737341448861,-3013.95,0.00021644,2]
[349637003,1737341448871,-1092.39,0.00021644,2]
[349637004,1737341448881,-3622.66,0.00021644,2]
[349637005,1737341448890,-1764.85,0.00021644,2]
[349637006,1737341448900,-899.23,0.00021644,2]
[349637007,1737341448910,-1042.88,0.00021644,2]
[349637008,1737341448920,-2663.83,0.00021644,2]
[349637009,1737341448930,-1389.6002,0.00021644,2]
[349637010,1737341448941,-982.13,0.00021644,2]
[349637011,1737341448951,-500.0,0.00021644,2]
[349637012,1737341448963,-3000.0,0.0002167,2]
[349637013,1737341448973,-500.0,0.00021702,2]
[349637014,1737341448984,-1460.67495438,0.00021702,2]
[349637015,1737341448994,-35000.0,0.00021702,2]
[349637016,1737341449004,-500.0,0.00021744,2]
[349637017,1737341449014,-500.0,0.00021744,2]
[349637018,1737341449024,-528.62,0.00021744,2]
[349637019,1737341449034,-1115.44,0.00021744,2]
[349637020,1737341449046,-904.0,0.00021744,2]
[349637021,1737341449056,-644.02,0.00021744,2]
[349637022,1737341449065,-500.0,0.00021744,2]
[349637023,1737341449075,-655.36,0.00021744,2]
[349637024,1737341449085,-1653.16,0.00021744,2]
[349637025,1737341449094,-675.33,0.00021744,2]
[349637026,1737341449106,-500.0,0.00021744,2]
[349637027,1737341449116,-1593.94,0.00021744,2]
[349637028,1737341449125,-789.79,0.00021744,2]
[349637029,1737341449134,-664.08,0.00021744,2]
[349637030,1737341449144,-500.0,0.00021744,2]
[349637031,1737341449155,-1383.67,0.00021744,2]
[349637032,1737341449165,-2038.09,0.00021744,2]
[349637033,1737341449175,-2310.83,0.00021744,2]
[349637034,1737341449185,-1037.6,0.00021744,2]
[349637035,1737341449194,-1897.64,0.00021744,2]
[349637036,1737341449203,-500.0,0.00021744,2]
[349637037,1737341449213,-1097.94,0.00021744,2]
[349637038,1737341449223,-2543.37,0.00021744,2]
[349637039,1737341449232,-1573.52,0.00021744,2]
[349637040,1737341449242,-659.32,0.00021744,2]
[349637041,1737341449252,-520.41,0.00021744,2]
[349637042,1737341449262,-2097.94,0.00021744,2]
[349637043,1737341449272,-500.0,0.00021744,2]
[349637044,1737341449283,-1561.67,0.00021744,2]
[349637045,1737341449292,-500.0,0.00021744,2]
[349637046,1737341449303,-2851.54,0.00021744,2]
[349637047,1737341449313,-500.0,0.00021744,2]
[349637048,1737341449335,-2160.5,0.00021744,2]
[349637049,1737341449346,-1189.16,0.00021744,2]
[349637050,1737341449359,-500.0,0.00021744,2]
[349637051,1737341449370,-500.0,0.00021744,2]
[349637052,1737341449381,-1514.42,0.00021744,2]
[349637053,1737341449392,-1032.48,0.00021744,2]
[349637054,1737341449403,-2425.79,0.00021744,2]
[349637055,1737341449414,-518.86945221,0.00021744,2]
[349637056,1737341449424,-500.0,0.00021744,2]
[349637057,1737341449435,-1543.16,0.00021744,2]
[349637058,1737341449446,-500.0,0.00021744,2]
[349637059,1737341449457,-537.88856525,0.00021744,2]
[349637060,1737341449467,-500.0,0.00021744,2]
[349637061,1737341449477,-576.15,0.00021744,2]
[349637062,1737341449488,-500.0,0.00021744,2]
[349637063,1737341449499,-626.28,0.00021744,2]
[349637064,1737341449509,-500.0,0.00021744,2]
[349637065,1737341449520,-500.0,0.00021744,2]
[349637066,1737341449531,-500.0,0.00021744,2]
[349637067,1737341449542,-500.0,0.00021744,2]
[349637068,1737341449552,-500.0,0.00021744,2]
[349637069,1737341449563,-501.57,0.00021744,2]
[349637070,1737341449574,-1087.33,0.00021744,2]
[349637071,1737341449584,-939.98,0.00021744,2]
[349637072,1737341449595,-200.0,0.00021744,2]
[349637073,1737341449613,-3012.1,0.00021744,2]
[349637074,1737341449623,-500.0,0.00021744,2]
[349637075,1737341449633,-500.0,0.00021744,2]
[349637076,1737341449645,-631.72,0.00021744,2]
[349637077,1737341449655,-216.82778688,0.00021744,2]
[349637078,1737341449665,-1778.15,0.00021744,2]
[349637079,1737341449675,-500.0,0.00021744,2]
[349637080,1737341449686,-762.15,0.00021744,2]
[349637081,1737341449697,-500.0,0.00021744,2]
[349637082,1737341449707,-873.56,0.00021744,2]
[349637083,1737341449717,-500.0,0.00021744,2]
[349637084,1737341449728,-500.0,0.00021744,2]
[349637085,1737341449738,-500.0,0.00021744,2]
[349637086,1737341449748,-500.0,0.00021744,2]
[349637087,1737341449758,-500.0,0.00021744,2]
[349637088,1737341449767,-500.0,0.00021744,2]
[349637089,1737341449777,-953.8,0.00021744,2]
[349637090,1737341449788,-283.93864288,0.00021744,2]
[349637091,1737341449798,-500.0,0.00021744,2]
[349637092,1737341449808,-500.0,0.00021744,2]
[349637093,1737341449818,-1758.93,0.00021744,2]
[349637094,1737341449828,-500.0,0.00021744,2]
[349637095,1737341449838,-719.25,0.00021744,2]
[349637096,1737341449849,-500.0,0.00021744,2]
[349637097,1737341449861,-2461.76,0.00021744,2]
[349637098,1737341449871,-530.88963568,0.00021744,2]
[349637099,1737341449881,-595.69523691,0.00021744,2]
[349637100,1737341449891,-929.83,0.00021744,2]
[349637101,1737341449900,-500.0,0.00021744,2]
[349637102,1737341449910,-500.0,0.00021744,2]
[349637103,1737341449920,-649.0,0.00021744,2]
[349637104,1737341449930,-500.0,0.00021744,2]
[349637105,1737341449943,-520.66162541,0.00021744,2]
[349637106,1737341449953,-1088.95,0.00021744,2]
[349637107,1737341449962,-434.87881517,0.00021744,2]
[349637108,1737341449972,-500.0,0.00021744,2]
[349637109,1737341449983,-193.36347723,0.00021744,2]
[349637110,1737341449993,-619.88,0.00021745,2]
[349637111,1737341450003,-674.03,0.00021745,2]
[349637112,1737341450013,-500.0,0.00021745,2]
[349637113,1737341450024,-1146.67,0.00021745,2]
[349637114,1737341450034,-500.0,0.00021745,2]
[349637115,1737341450044,-500.0,0.00021745,2]
[349637116,1737341450053,-584.89491646,0.00021745,2]
[349637117,1737341450062,-500.0,0.00021745,2]
[349637118,1737341450072,-500.0,0.00021745,2]
[349637119,1737341450081,-176.40782223,0.00021745,2]
[349637120,1737341450091,-500.0,0.00021745,2]
[349637121,1737341450103,-500.0,0.00021745,2]
[349637122,1737341450112,-500.0,0.00021745,2]
[349637123,1737341450122,-1918.53,0.00021745,2]
[349637124,1737341450134,-756.35,0.00021745,2]
[349637125,1737341450144,-1190.54,0.00021745,2]
[349637126,1737341450154,-500.0,0.00021745,2]
[349637127,1737341450165,-1376.1,0.00021745,2]
[349637128,1737341450175,-1612.27,0.00021745,2]
[349637129,1737341450184,-500.0,0.00021745,2]
[349637130,1737341450194,-1116.4,0.00021745,2]
[349637131,1737341450204,-940.79,0.00021745,2]
[349637132,1737341450213,-676.28,0.00021745,2]
[349637133,1737341450223,-1127.83,0.00021745,2]
[349637134,1737341450233,-2271.56,0.00021745,2]
[349637135,1737341450243,-500.0,0.00021745,2]
[349637136,1737341450252,-600.68,0.00021745,2]
[349637137,1737341450262,-500.0,0.00021745,2]
[349637138,1737341450273,-712.38,0.00021745,2]
[349637139,1737341450283,-500.0,0.00021745,2]
[349637140,1737341450293,-500.0,0.00021745,2]
[349637141,1737341450303,-2083.23,0.00021745,2]
[349637142,1737341450313,-597.19,0.00021745,2]
[349637143,1737341450323,-500.0,0.00021745,2]
[349637144,1737341450333,-518.89,0.00021745,2]
[349637145,1737341450343,-500.0,0.00021745,2]
[349637146,1737341450356,-500.0,0.00021745,2]
[349637147,1737341450366,-585.28,0.00021745,2]
[349637148,1737341450376,-555.85,0.00021745,2]
[349637149,1737341450386,-565.3,0.00021745,2]
[349637150,1737341450396,-586.8,0.00021745,2]
[349637151,1737341450406,-1457.5,0.00021745,2]
[349637152,1737341450415,-160.17782855,0.00021745,2]
[349637153,1737341450425,-500.0,0.00021745,2]
[349637154,1737341450434,-2521.35,0.00021745,2]
[349637155,1737341450444,-513.92,0.00021745,2]
[349637156,1737341450454,-500.0,0.00021745,2]
[349637157,1737341450464,-3099.61,0.00021745,2]
[349637158,1737341450473,-500.0,0.00021745,2]
[349637159,1737341450484,-969.04,0.00021745,2]
[349637160,1737341450493,-3420.9,0.00021745,2]
[349637161,1737341450502,-1029.34,0.00021745,2]
[349637162,1737341450512,-1092.41,0.00021745,2]
[349637163,1737341450521,-284.83211577,0.00021745,2]
[349637164,1737341450531,-1107.64,0.00021745,2]
[349637165,1737341450541,-500.0,0.00021745,2]
[349637166,1737341450550,-1018.41,0.00021745,2]
[349637167,1737341450559,-500.0,0.00021745,2]
[349637168,1737341450569,-500.0,0.00021745,2]
[349637169,1737341450579,-500.0,0.00021745,2]
[349637170,1737341450588,-684.9,0.00021745,2]
[349637171,1737341450597,-1262.65,0.00021745,2]
[349637172,1737341450610,-500.0,0.00021745,2]
[349637173,1737341450619,-2322.28,0.00021745,2]
[349637174,1737341450629,-1365.95,0.00021745,2]
[349637175,1737341450639,-500.0,0.00021745,2]
[349637176,1737341450648,-500.0,0.00021745,2]
[349637177,1737341450657,-522.4,0.00021745,2]
[349637178,1737341450667,-500.0,0.00021745,2]
[349637179,1737341450676,-1186.3,0.00021745,2]
[349637180,1737341450686,-500.0,0.00021745,2]
[349637181,1737341450695,-500.0,0.00021745,2]
[349637182,1737341450704,-1071.9,0.00021745,2]
[349637183,1737341450713,-500.0,0.00021745,2]
[349637184,1737341450723,-500.0,0.00021745,2]
[349637185,1737341450732,-2285.72,0.00021745,2]
[349637186,1737341450741,-506.55944383,0.00021745,2]
[349637187,1737341450751,-1897.1,0.00021745,2]
[349637188,1737341450760,-900.62,0.00021745,2]
[349637189,1737341450770,-500.0,0.00021745,2]
[349637190,1737341450779,-2315.02,0.00021745,2]
[349637191,1737341450790,-615.3,0.00021745,2]
[349637192,1737341450800,-2482.3,0.00021745,2]
[349637193,1737341450998,-757.87,0.00021745,2]
[349637194,1737341451009,-500.0,0.00021745,2]
[349637195,1737341451019,-500.0,0.00021745,2]
[349637196,1737341451032,-500.0,0.00021745,2]
[349637197,1737341451042,-1398.17,0.00021745,2]
[349637198,1737341451051,-2094.58,0.00021745,2]
[349637199,1737341451061,-500.0,0.00021745,2]
[349637200,1737341451070,-504.69,0.00021745,2]
[349637201,1737341451080,-500.0,0.00021745,2]
[349637202,1737341451089,-1099.08,0.00021745,2]
[349637203,1737341451098,-1914.5,0.00021745,2]
[349637204,1737341451110,-500.0,0.00021745,2]
[349637205,1737341451119,-694.52,0.00021745,2]
[349637206,1737341451128,-1870.05,0.00021745,2]
[349637207,1737341451138,-1035.35,0.00021745,2]
[349637208,1737341451147,-1948.3,0.00021745,2]
[349637209,1737341451156,-1880.06,0.00021745,2]
[349637210,1737341451166,-778.0,0.00021745,2]
[349637211,1737341451175,-529.44,0.00021745,2]
[349637212,1737341451185,-500.0,0.00021745,2]
[349637213,1737341451195,-1294.47,0.00021745,2]
[349637214,1737341451205,-500.0,0.00021745,2]
[349637215,1737341451214,-500.0,0.00021745,2]
[349637216,1737341451224,-1171.05,0.00021745,2]
[349637217,1737341451234,-869.79,0.00021745,2]
[349637218,1737341451244,-4870.82,0.00021745,2]
[349637219,1737341451254,-3627.78,0.00021745,2]
[349637220,1737341451264,-500.0,0.00021745,2]
[349637221,1737341451273,-500.0,0.00021745,2]
[349637222,1737341451283,-1690.67,0.00021745,2]
[349637223,1737341451293,-892.06,0.00021745,2]
[349637224,1737341451303,-500.0,0.00021745,2]
[349637225,1737341451313,-500.0,0.00021745,2]
[349637226,1737341451322,-2722.59,0.00021745,2]
[349637227,1737341451332,-1195.86,0.00021745,2]
[349637228,1737341451342,-2123.47,0.00021745,2]
[349637229,1737341451354,-500.0,0.00021745,2]
[349637230,1737341451363,-500.0,0.00021745,2]
[349637231,1737341451373,-1029.67,0.00021745,2]
[349637232,1737341451382,-180.64001152,0.00021745,2]
[349637233,1737341451391,-1387.9,0.00021745,2]
[349637234,1737341451400,-500.0,0.00021745,2]
[349637235,1737341451410,-790.42,0.00021745,2]
[349637236,1737341451420,-500.0,0.00021745,2]
[349637237,1737341451430,-3392.88,0.00021745,2]
[349637238,1737341451440,-4539.75,0.00021745,2]
[349637239,1737341451450,-659.67,0.00021745,2]
[349637240,1737341451460,-7232.39,0.00021745,2]
[349637241,1737341451470,-1483.11,0.00021745,2]
[349637242,1737341451480,-942.59,0.00021745,2]
[349637243,1737341451490,-1689.67,0.00021745,2]
[349637244,1737341451500,-1582.85,0.00021745,2]
[349637245,1737341451509,-1366.94,0.00021745,2]
[349637246,1737341451519,-500.0,0.00021745,2]
[349637247,1737341451528,-11936.95,0.00021745,2]
[349637248,1737341451538,-1552.47,0.00021745,2]
[349637249,1737341451547,-500.0,0.00021745,2]
[349637250,1737341451557,-650.09,0.00021745,2]
[349637251,1737341451567,-1131.54,0.00021745,2]
[349637252,1737341451576,-2304.58,0.00021745,2]
[349637253,1737341451586,-2194.46,0.00021745,2]
[349637254,1737341451595,-932.41,0.00021745,2]
[349637255,1737341451607,-500.0,0.00021745,2]
[349637256,1737341451616,-717.65,0.00021745,2]
[349637257,1737341451625,-2289.72,0.00021745,2]
[349637258,1737341451636,-3986.3,0.00021745,2]
[349637259,1737341451646,-151.0,0.00021745,2]
[349637260,1737341451655,-4241.31,0.00021745,2]
[349637261,1737341451664,-1097.0,0.00021745,2]
[349637262,1737341451673,-151.0,0.00021745,2]
[349637263,1737341451683,-152.75992,0.00021745,2]
[349637264,1737341451692,-10204.92,0.00021745,2]
[349637265,1737341451702,-500.0,0.00021745,2]
[349637266,1737341451712,-152.6815,0.00021745,2]
[349637267,1737341451721,-158.683216,0.00021745,2]
[349637268,1737341451731,-157.462191,0.00021745,2]
[349637269,1737341451740,-5268.84,0.00021745,2]
[349637270,1737341451750,-152.329874,0.00021745,2]
[349637271,1737341451758,-154.591377,0.00021745,2]
[349637272,1737341451768,-152.274127,0.00021745,2]
[349637273,1737341451777,-863.26,0.00021745,2]
[349637274,1737341451787,-1492.23,0.00021745,2]
[349637275,1737341451797,-3853.45,0.00021745,2]
[349637276,1737341451807,-500.0,0.00021745,2]
[349637277,1737341451819,-500.0,0.00021745,2]
[349637278,1737341451830,-2295.54,0.00021745,2]
[349637279,1737341451840,-558.32,0.00021745,2]
[349637280,1737341451853,-500.0,0.00021745,2]
[349637281,1737341451863,-6423.01,0.00021745,2]
[349637282,1737341451872,-673.28,0.00021745,2]
[349637283,1737341451882,-1692.99,0.00021745,2]
[349637284,1737341451892,-1102.46,0.00021745,2]
[349637285,1737341451902,-158.703472,0.00021745,2]
[349637286,1737341451912,-1866.25,0.00021745,2]
[349637287,1737341451921,-1135.79,0.00021745,2]
[349637288,1737341451930,-500.0,0.00021745,2]
[349637289,1737341451943,-151.0,0.00021745,2]
[349637290,1737341451953,-3804.3,0.00021745,2]
[349637291,1737341451962,-2040.08,0.00021745,2]
[349637292,1737341451972,-3000.0,0.00021746,2]
[349637293,1737341451983,-293.87811235,0.00021773,2]
[349637294,1737341451992,-2840.85,0.00021821,2]
[349637295,1737341452001,-500.0,0.00021821,2]
[349637296,1737341452011,-500.0,0.00021821,2]
[349637297,1737341452020,-652.36,0.00021821,2]
[349637298,1737341452031,-500.0,0.00021821,2]
[349637299,1737341452040,-597.11,0.00021821,2]
[349637300,1737341452050,-500.0,0.00021821,2]
[349637301,1737341452060,-500.0,0.00021821,2]
[349637302,1737341452070,-500.0,0.00021821,2]
[349637303,1737341452080,-500.0,0.00021824,2]
[349637304,1737341452090,-3000.0,0.0002183,2]
[349637305,1737341452100,-5800.0,0.000219,2]
[349637306,1737341452112,-2447.82197481,0.000219,2]
[349637307,1737341452121,-676.19448148,0.000219,2]
[349637308,1737341452132,-950.6114595,0.000219,2]
[349637309,1737341452142,-184.49854725,0.000219,2]
[349637310,1737341452152,-500.0,0.00021917,2]
[349637311,1737341452163,-500.0,0.00021917,2]
[349637312,1737341452180,-359.49806977,0.00021917,2]
[349637313,1737341452199,-1000.0,0.00021918,3]
[349637314,1737341452215,-1000.0,0.00021918,3]
[349637315,1737341452224,-1000.0,0.00021918,3]
[349637316,1737341452234,-1000.0,0.00021918,3]
[349637317,1737341452243,-1000.0,0.00021918,3]
[349637318,1737341452252,-1000.0,0.00021918,3]
[349637319,1737341452262,-1000.0,0.00021918,3]
[349637320,1737341452271,-1029.0,0.00021918,3]
[349637321,1737341452280,-150.0,0.00021918,2]
[349637322,1737341452290,-500.0,0.00021918,2]
[349637323,1737341452300,-500.0,0.00021918,2]
[349637324,1737341452309,-1180.97,0.00021918,2]
[349637325,1737341452319,-1356.24,0.00021918,2]
[349637326,1737341452328,-2199.8,0.00021918,2]
[349637327,1737341452337,-1331.89,0.00021918,2]
[349637328,1737341452347,-3013.95,0.00021918,2]
[349637329,1737341452358,-1092.39,0.00021918,2]
[349637330,1737341452368,-3622.66,0.00021918,2]
[349637331,1737341452377,-1764.85,0.00021918,2]
[349637332,1737341452387,-899.23,0.00021918,2]
[349637333,1737341452396,-1042.88,0.00021918,2]
[349637334,1737341452406,-2663.83,0.00021918,2]
[349637335,1737341452415,-1389.6002,0.00021918,2]
[349637336,1737341452425,-982.13,0.00021918,2]
[349637337,1737341452436,-500.0,0.00021918,2]
[349637338,1737341452446,-2018.0,0.00021975,2]
[349637339,1737341452455,-636.0,0.00021975,2]
[349637340,1737341452466,-150.0,0.00021975,2]
[349637341,1737341452475,-567.0,0.00021975,2]
[349637342,1737341452485,-1863.0,0.00021975,2]
[349637343,1737341452494,-907.0,0.00021975,2]
[349637344,1737341452503,-2947.0,0.00021975,2]
[349637345,1737341452513,-781.0,0.00021975,2]
[349637346,1737341452522,-1261.0,0.00021975,2]
[349637347,1737341452531,-150.0,0.00021975,2]
[349637348,1737341452541,-537.0,0.00021975,2]
[349637349,1737341452551,-3901.0,0.00021975,2]